bitfinex-derivatives/quotes_SOLF0:USTF0_20241206
["timestamp","ask_amount","ask_price","bid_price","bid_amount"]
[1733489283190,10.63374977,232.44,232.29,0.66691]
[1733489283392,10.63374977,232.44,232.31,10.63374977]
[1733489284303,10.63374977,232.41,232.29,0.66691]
[1733489284894,3.01,232.4,232.29,0.66691]
[1733489285804,10.63374977,232.38,232.29,0.66691]
[1733489287308,3.9083,232.39,232.29,0.66691]
[1733489287606,2.0126,232.39,232.29,0.66691]
[1733489287802,10.63374977,232.38,232.29,0.66691]
[1733489288503,3.01,232.4,232.29,0.66691]
[1733489288697,3.01,232.4,232.3,2.0485]
[1733489289206,3.44,232.39,232.3,2.0485]
[1733489290305,10.63374977,232.38,232.29,0.66691]
[1733489290904,10.63374977,232.35,232.29,0.66691]
[1733489293800,4.0188,232.38,232.24,10.63374977]
[1733489293801,14.65254977,232.38,232.24,10.63374977]
[1733489294005,14.65254977,232.38,232.22,1.9134]
[1733489294006,2.032,232.38,232.22,1.9134]
[1733489294202,3.44,232.39,232.27,10.63374977]
[1733489295105,3.44,232.39,232.3,10.63374977]
[1733489295302,3.44,232.39,232.31,3.8881]
[1733489296013,3.44,232.39,232.33,10.63374977]
[1733489296707,3.44,232.39,232.31,3.8881]
[1733489296903,3.44,232.39,232.24,10.63374977]
[1733489297104,3.44,232.39,232.25,0.79043906]
[1733489297601,3.44,232.39,232.27,10.63374977]
[1733489297802,3.44,232.39,232.3,10.63374977]
[1733489298008,3.44,232.39,232.31,2.0372]
[1733489301713,3.44,232.39,232.31,12.67094977]
[1733489302816,6.46,232.38,232.31,12.67094977]
[1733489303212,3.44,232.39,232.34,10.63374977]
[1733489304610,3.01,232.4,232.37,10.63374977]
[1733489304806,6.31,232.43,232.28,2.1186]
[1733489305008,6.31,232.43,232.33,10.63374977]
[1733489305009,4.4,232.39,232.33,10.63374977]
[1733489305610,4.4,232.39,232.3,10.63374977]
[1733489306013,4.4,232.39,232.37,10.63374977]
[1733489306410,3.08,232.39,232.37,10.63374977]
[1733489306609,3.08,232.39,232.38,10.63374977]
[1733489306610,3.44,232.39,232.38,10.63374977]
[1733489306812,6.31,232.43,232.38,10.63374977]
[1733489307717,6.31,232.43,232.27,12.89]
[1733489307911,6.31,232.43,232.41,10.63374977]
[1733489308118,5.56,232.42,232.41,10.63374977]
[1733489308312,5.7157,232.43,232.41,10.63374977]
[1733489308519,3.44,232.43,232.41,10.63374977]
[1733489308820,3.44,232.43,232.42,10.63374977]
[1733489310622,10.63374977,232.6,232.42,10.63374977]
[1733489311617,6.4558,232.67,232.54,10.63374977]
[1733489312315,5.64,232.66,232.54,10.63374977]
[1733489312518,13.89,232.66,232.54,10.63374977]
[1733489312720,13.89,232.66,232.57,10.63374977]
[1733489313116,13.89,232.66,232.54,10.63374977]
[1733489313321,24.52374977,232.66,232.43,1.0]
[1733489313521,10.63374977,232.63,232.48,10.63374977]
[1733489314419,10.63374977,232.6,232.44,10.63374977]
[1733489314617,10.63374977,232.57,232.44,10.63374977]
[1733489314814,6.6497,232.56,232.41,10.63374977]
[1733489315221,6.6497,232.56,232.26,33.25603362]
[1733489315429,6.6497,232.56,232.41,10.63374977]
[1733489315620,10.63374977,232.54,232.38,10.63374977]
[1733489316119,23.69785307,232.56,232.36,17.04815307]
[1733489316721,6.6497,232.56,232.4,17.04815307]
[1733489318721,6.6497,232.56,232.27,12.89]
[1733489318922,6.6497,232.56,232.36,17.04815307]
[1733489318923,23.69785307,232.56,232.36,17.04815307]
[1733489319422,17.04815307,232.52,232.32,17.04815307]
[1733489320127,17.04815307,232.52,232.36,17.04815307]
[1733489320325,23.69785307,232.56,232.36,17.04815307]
[1733489321321,23.69785307,232.56,232.37,17.04815307]
[1733489325124,17.04815307,232.52,232.33,17.04815307]
[1733489328928,17.04815307,232.52,232.27,12.89]
[1733489329136,17.04815307,232.52,232.3,17.04815307]
[1733489331539,17.04815307,232.48,232.3,17.04815307]
[1733489331737,2.0567,232.47,232.3,17.04815307]
[1733489332141,4.3678,232.46,232.3,17.04815307]
[1733489334342,4.3678,232.46,232.26,36.04900345]
[1733489334343,4.3678,232.46,232.34,17.04815307]
[1733489335042,6.71,232.45,232.34,17.04815307]
[1733489336244,2.62,232.44,232.34,17.04815307]
[1733489336743,2.62,232.44,232.3,17.04815307]
[1733489338048,2.62,232.44,232.32,10.66122268]
[1733489338940,2.62,232.44,232.35,10.66122268]
[1733489340351,2.62,232.44,232.38,10.66122268]
[1733489342343,2.62,232.44,232.32,10.66122268]
[1733489342344,2.62,232.44,232.41,10.66122268]
[1733489343050,6.71,232.45,232.41,10.66122268]
[1733489343648,6.71,232.45,232.38,10.66122268]
[1733489344146,4.67,232.44,232.38,10.66122268]
[1733489346250,4.67,232.44,232.35,10.66122268]
[1733489347351,4.67,232.44,232.26,35.40879345]
[1733489347352,4.67,232.44,232.32,10.66122268]
[1733489347547,4.2299,232.43,232.29,10.66122268]
[1733489347747,10.66122268,232.41,232.25,0.8138]
[1733489347952,10.66122268,232.41,232.27,10.66122268]
[1733489348847,2.1641,232.42,232.3,10.66122268]
[1733489350646,2.1641,232.42,232.25,0.8138]
[1733489350647,10.66122268,232.34,232.25,0.8138]
[1733489350855,4.3282,232.33,232.19,10.66122268]
[1733489351356,4.3282,232.33,232.22,10.66122268]
[1733489351357,2.2092,232.32,232.22,10.66122268]
[1733489351552,2.2092,232.32,232.19,10.66122268]
[1733489351954,2.2092,232.32,232.17,17.07773244]
[1733489353256,6.24,232.41,232.25,17.07773244]
[1733489353457,4.4208,232.4,232.25,17.07773244]
[1733489356057,2.1438,232.39,232.21,17.07773244]
[1733489358652,17.07773244,232.37,232.07,27.90721761]
[1733489358857,17.07773244,232.37,232.17,17.07773244]
[1733489361759,17.07773244,232.33,232.17,17.07773244]
[1733489364355,6.5,232.32,232.17,17.07773244]
[1733489366756,7.22,232.31,232.17,17.07773244]
[1733489372171,7.22,232.31,232.18,0.8424]
[1733489373965,7.22,232.31,232.19,10.67293086]
[1733489378771,7.22,232.31,232.2,10.67293086]
[1733489379771,7.22,232.31,232.18,0.8424]
[1733489379978,7.22,232.31,232.18,11.51533086]
[1733489386379,6.02,232.3,232.18,11.51533086]
[1733489387177,6.02,232.3,232.18,0.8424]
[1733489387481,6.02,232.3,232.19,10.67293086]
[1733489387777,16.69293086,232.3,232.19,10.67293086]
[1733489388285,6.3118,232.29,232.16,10.67293086]
[1733489388579,6.3118,232.29,232.19,10.67293086]
[1733489389282,4.1685,232.29,232.22,10.67293086]
[1733489389672,6.02,232.3,232.22,10.67293086]
[1733489390482,6.09,232.29,232.11,36.55551761]
[1733489390686,6.09,232.29,232.23,10.67293086]
[1733489393084,6.09,232.29,232.23,10.67293086]
[1733489393279,6.09,232.29,232.12,5.9053044]
[1733489393485,6.09,232.29,232.2,10.67293086]
[1733489394086,6.09,232.29,232.13,0.1687]
[1733489394087,6.09,232.29,232.24,6.82968292]
[1733489394684,6.09,232.29,232.26,6.82968292]
[1733489399687,6.09,232.29,232.28,6.82968292]
[1733489402383,6.09,232.29,232.18,0.1701]
[1733489402588,6.09,232.29,232.25,6.82968292]
[1733489402784,6.09,232.29,232.27,6.82968292]
[1733489406790,6.09,232.29,232.18,0.1701]
[1733489406991,6.09,232.29,232.27,6.82968292]
[1733489407387,6.09,232.29,232.26,6.82968292]
[1733489408189,6.09,232.29,232.17,0.9412]
[1733489408391,6.09,232.29,232.25,6.82968292]
[1733489408693,6.02,232.3,232.25,6.82968292]
[1733489409293,6.82968292,232.28,232.21,6.82968292]
[1733489409492,6.02,232.3,232.21,6.82968292]
[1733489409493,12.84968292,232.3,232.21,6.82968292]
[1733489409791,12.84968292,232.3,232.23,6.82968292]
[1733489410187,6.82968292,232.3,232.23,6.82968292]
[1733489410492,6.79,232.29,232.23,6.82968292]
[1733489411393,6.79,232.29,232.25,6.82968292]
[1733489411994,6.59,232.28,232.25,6.82968292]
[1733489412494,6.59,232.28,232.27,6.82968292]
[1733489414192,6.59,232.28,232.17,0.30743]
[1733489414392,6.59,232.28,232.27,6.82968292]
[1733489415294,6.59,232.28,232.17,0.30743]
[1733489415493,13.41968292,232.28,232.2,6.82968292]
[1733489417297,13.41968292,232.28,232.17,0.30743]
[1733489417298,13.41968292,232.28,232.22,6.82968292]
[1733489418396,6.59,232.28,232.24,6.82968292]
[1733489419199,6.59,232.28,232.17,0.30743]
[1733489419399,6.59,232.28,232.26,6.82968292]
[1733489419795,6.59,232.28,232.24,6.82968292]
[1733489420497,6.59,232.28,232.22,6.82968292]
[1733489420904,6.82968292,232.27,232.17,0.30743]
[1733489421204,6.82968292,232.26,232.19,6.82968292]
[1733489421601,6.82968292,232.22,232.17,0.30743]
[1733489423108,9.06118292,232.24,232.17,7.13711292]
[1733489423707,9.06118292,232.24,232.17,0.30743]
[1733489424009,2.2315,232.24,232.18,6.82968292]
[1733489424203,2.2315,232.24,232.17,0.30743]
[1733489424204,2.2315,232.24,232.2,6.82968292]
[1733489425110,2.2315,232.24,232.22,6.82968292]
[1733489425605,2.2315,232.24,232.2,6.82968292]
[1733489426010,2.2315,232.24,232.17,10.98218903]
[1733489426716,2.2315,232.24,232.17,0.30743]
[1733489427611,5.98,232.23,232.17,0.30743]
[1733489428813,10.67475903,232.22,231.96,5.9053044]
[1733489429107,10.67475903,232.22,232.06,10.67475903]
[1733489429314,10.67475903,232.19,232.04,10.67475903]
[1733489430413,10.67475903,232.19,231.96,2.1445]
[1733489430608,10.67475903,232.19,232.04,10.67475903]
[1733489433106,4.7,232.18,232.04,10.67475903]
[1733489433310,10.67475903,232.16,232.04,10.67475903]
[1733489433615,10.67475903,232.16,232.02,10.67475903]
[1733489433817,4.5081,232.15,232.02,10.67475903]
[1733489434017,6.7196,232.15,232.02,10.67475903]
[1733489434419,10.67475903,232.03,231.81,5.9053044]
[1733489434717,4.7,232.18,231.92,10.67475903]
[1733489434918,12.88045903,232.07,231.92,10.67475903]
[1733489435214,12.88045903,232.07,231.83,1.5555]
[1733489435420,2.2115,232.06,231.93,10.67475903]
[1733489435714,2.2057,232.07,231.96,10.67475903]
[1733489435915,2.2057,232.07,231.96,11.35676903]
[1733489437017,2.2115,232.13,231.96,11.35676903]
[1733489437018,12.88625903,232.13,231.96,11.35676903]
[1733489437216,4.3108,232.13,231.99,10.67475903]
[1733489437514,4.3108,232.13,231.96,0.68201]
[1733489437515,14.98555903,232.13,231.96,0.68201]
[1733489437714,14.98555903,232.13,231.98,10.67475903]
[1733489438622,14.98555903,232.13,232.01,10.67475903]
[1733489439314,14.98555903,232.13,231.98,10.67475903]
[1733489440318,14.98555903,232.13,232.01,10.67475903]
[1733489440516,4.3108,232.13,232.01,10.67475903]
[1733489441227,2.0993,232.13,232.04,10.67475903]
[1733489442921,4.7,232.18,232.07,10.67475903]
[1733489443123,4.7,232.18,232.1,10.67475903]
[1733489445219,4.7,232.18,232.07,10.67475903]
[1733489445421,4.7,232.18,232.05,10.67475903]
[1733489446024,2.3708,232.17,232.05,10.67475903]
[1733489448223,10.67475903,232.16,232.01,10.67475903]
[1733489449230,10.67475903,232.12,231.96,0.68201]
[1733489449535,2.3763,232.11,231.96,11.35676903]
[1733489450027,2.1608,232.1,231.99,10.67475903]
[1733489450228,2.1608,232.1,231.96,0.68201]
[1733489450229,2.3708,232.17,232.02,10.67475903]
[1733489450430,6.9079,232.17,232.02,10.67475903]
[1733489451333,6.9079,232.17,232.05,10.67475903]
[1733489455334,6.9079,232.17,232.02,10.67475903]
[1733489455937,6.9079,232.17,232.05,10.67475903]
[1733489457242,6.9079,232.17,231.97,4.1863]
[1733489457243,2.3708,232.17,232.08,10.67475903]
[1733489458534,2.3062,232.22,232.08,10.67475903]
[1733489458740,2.2856,232.23,232.11,10.67475903]
[1733489459143,2.2856,232.23,232.14,10.67475903]
[1733489459342,6.87,232.22,232.14,10.67475903]
[1733489459940,7.12,232.21,232.14,10.67475903]
[1733489461040,7.12,232.21,232.11,10.67475903]
[1733489461447,7.12,232.21,232.08,10.67475903]
[1733489462041,9.3312,232.21,232.08,10.67475903]
[1733489463844,10.67475903,232.2,232.04,10.67475903]
[1733489467245,10.67475903,232.17,232.04,10.67475903]
[1733489467649,10.67475903,232.17,232.01,10.67475903]
[1733489468461,10.67475903,232.17,231.97,0.5174]
[1733489468462,10.67475903,232.2,232.04,10.67475903]
[1733489470958,10.67475903,232.17,232.04,10.67475903]
[1733489471247,10.67475903,232.14,231.98,10.67475903]
[1733489471459,4.6397,232.13,231.98,10.67475903]
[1733489471650,10.67475903,232.11,231.98,10.67475903]
[1733489471855,10.67475903,232.11,231.95,11.12982903]
[1733489473051,10.67475903,232.04,231.95,0.45507]
[1733489473358,2.3687,232.03,231.95,0.45507]
[1733489473554,4.5722,232.03,231.95,0.45507]
[1733489474153,4.5722,232.03,231.82,2.0]
[1733489474458,10.67475903,231.94,231.82,2.0]
[1733489475454,10.67475903,231.98,231.83,10.67475903]
[1733489475857,10.67475903,231.95,231.82,2.0]
[1733489476154,2.2323,231.94,231.82,2.0]
[1733489476458,10.67475903,231.92,231.82,2.0]
[1733489477258,10.67475903,231.89,231.82,2.0]
[1733489477654,10.67475903,231.92,231.82,2.0]
[1733489478057,2.3978,231.93,231.82,2.0]
[1733489479465,4.5737,231.93,231.82,2.0]
[1733489480557,17.1380678,231.9,231.68,3.8488]
[1733489480764,17.1380678,231.9,231.69,0.79200271]
[1733489481563,6.6,231.89,231.68,20.9868678]
[1733489482363,6.6,231.89,231.72,17.1380678]
[1733489482564,6.6,231.89,231.68,3.8488]
[1733489482868,6.6,231.89,231.7,17.1380678]
[1733489483668,6.6,231.89,231.72,1.09826]
[1733489483864,6.6,231.89,231.74,17.1380678]
[1733489484972,6.6,231.89,231.75,0.79195136]
[1733489485870,5.79,231.88,231.75,0.79195136]
[1733489486075,5.79,231.88,231.78,17.1380678]
[1733489486275,5.79,231.88,231.79,4.6338]
[1733489487080,2.1863,231.88,231.79,4.6338]
[1733489487375,2.1863,231.88,231.82,17.1380678]
[1733489487580,1.2078,231.88,231.82,17.1380678]
[1733489492574,1.2078,231.88,231.73,0.9812]
[1733489492778,1.2078,231.88,231.79,17.1380678]
[1733489492981,1.2078,231.88,231.8,0.79181443]
[1733489494079,1.2078,231.88,231.79,17.1380678]
[1733489494276,1.2078,231.88,231.8,0.79183002]
[1733489494682,1.2078,231.88,231.79,17.1380678]
[1733489494880,1.2078,231.88,231.8,0.79182753]
[1733489495485,1.2078,231.88,231.79,17.1380678]
[1733489497387,1.2078,231.88,231.72,1.09826]
[1733489497579,2.3731,231.87,231.73,17.93010704]
[1733489497785,2.3731,231.87,231.74,0.79203924]
[1733489497984,2.3731,231.87,231.73,17.1380678]
[1733489499987,2.3731,231.87,231.76,10.71141005]
[1733489501180,5.31,231.86,231.76,10.71141005]
[1733489507093,7.39,231.85,231.76,10.71141005]
[1733489507900,7.39,231.85,231.66,0.80431]
[1733489508094,2.3666,231.84,231.71,10.71141005]
[1733489508296,2.3666,231.84,231.72,0.79207125]
[1733489508495,2.3666,231.84,231.71,10.71141005]
[1733489509194,2.3666,231.84,231.74,10.71141005]
[1733489509398,7.39,231.85,231.74,10.71141005]
[1733489512797,7.39,231.85,231.77,10.71141005]
[1733489513603,18.10141005,231.85,231.7,10.71141005]
[1733489515102,18.10141005,231.85,231.66,0.80431]
[1733489515412,18.10141005,231.85,231.71,10.71141005]
[1733489516407,18.10141005,231.85,231.66,0.80431]
[1733489516408,10.71141005,231.79,231.66,0.80431]
[1733489516709,6.7038,231.78,231.66,0.80431]
[1733489517305,6.7038,231.78,231.59,2.2104]
[1733489517306,10.62107828,231.77,231.48,10.71141005]
[1733489517499,2.15731112,231.77,231.64,10.71141005]
[1733489517699,6.7038,231.78,231.64,10.71141005]
[1733489518007,6.7038,231.78,231.61,10.71141005]
[1733489518304,10.71141005,231.75,231.58,10.71141005]
[1733489518505,10.71141005,231.75,231.59,0.79251952]
[1733489518902,10.71141005,231.75,231.58,10.71141005]
[1733489519304,7.39,231.85,231.59,0.79255615]
[1733489519509,10.71141005,231.71,231.56,4.6962]
[1733489519708,10.71141005,231.71,231.55,10.71141005]
[1733489520305,10.71141005,231.67,231.45,2.4059]
[1733489520502,10.71141005,231.67,231.52,10.71141005]
[1733489521004,10.71141005,231.67,231.41,2.2849]
[1733489521212,10.71141005,231.64,231.49,10.71141005]
[1733489521402,10.71141005,231.67,231.49,10.71141005]
[1733489521605,10.71141005,231.67,231.52,10.71141005]
[1733489522003,17.17522589,231.68,231.48,17.17522589]
[1733489522204,17.17522589,231.59,231.27,47.24243524]
[1733489522408,4.552,231.67,231.45,17.17522589]
[1733489522608,2.2568,231.66,231.46,5.47666019]
[1733489522812,2.2568,231.66,231.49,17.17522589]
[1733489523312,2.2568,231.66,231.53,17.17522589]
[1733489523611,2.2252,231.67,231.54,2.3641]
[1733489523805,17.17522589,231.72,231.55,2.295]
[1733489524203,17.17522589,231.76,231.57,17.17522589]
[1733489524410,6.8088,231.83,231.55,2.295]
[1733489524411,17.17522589,231.81,231.61,17.17522589]
[1733489524605,24.56522589,231.85,231.65,17.17522589]
[1733489524806,7.39,231.85,231.66,4.5547]
[1733489525006,7.39,231.85,231.67,0.79235302]
[1733489525407,7.39,231.85,231.66,4.5547]
[1733489525605,7.39,231.85,231.67,0.79228564]
[1733489528014,5.1,231.84,231.67,0.79228564]
[1733489528410,5.1,231.84,231.69,17.17522589]
[1733489528616,5.1,231.84,231.7,2.2542]
[1733489530116,17.17522589,231.83,231.7,2.2542]
[1733489530317,21.78452589,231.83,231.7,2.2542]
[1733489531416,4.6093,231.83,231.7,2.2542]
[1733489531817,5.1,231.84,231.76,17.17522589]
[1733489532217,5.1,231.84,231.77,2.3397]
[1733489532720,1e-08,231.84,231.8,17.17522589]
[1733489534613,3.77130001,231.85,231.8,17.17522589]
[1733489535020,17.17522589,232.03,231.8,17.17522589]
[1733489535218,6.8697,232.07,231.8,17.17522589]
[1733489535419,17.17522589,232.03,231.84,17.17522589]
[1733489535623,24.04492589,232.07,231.88,17.17522589]
[1733489536324,17.17522589,232.03,231.84,17.17522589]
[1733489536715,6.35,232.02,231.84,17.17522589]
[1733489536916,17.17522589,231.99,231.8,17.17522589]
[1733489537322,6.35,232.02,231.8,17.17522589]
[1733489537519,6.35,232.02,231.84,17.17522589]
[1733489540028,17.17522589,231.99,231.8,17.17522589]
[1733489542731,6.35,232.02,231.84,17.17522589]
[1733489543226,6.35,232.02,231.97,17.17522589]
[1733489543821,6.35,232.02,231.93,17.17522589]
[1733489544226,6.35,232.02,231.89,17.17522589]
[1733489544424,6.35,232.02,231.85,2.2169]
[1733489544626,6.35,232.02,231.92,17.17522589]
[1733489545933,6.35,232.02,231.85,15.1469]
[1733489545934,6.35,232.02,231.96,17.17522589]
[1733489546129,6.35,232.02,231.93,4.6936]
[1733489546827,6.35,232.02,231.96,17.17522589]
[1733489549034,6.35,232.02,232.0,17.17522589]
[1733489550536,5.2,232.06,232.0,17.17522589]
[1733489550736,5.2,232.06,232.05,17.17522589]
[1733489550932,5.2,232.06,232.01,17.17522589]
[1733489551736,5.2,232.06,231.97,19.47772589]
[1733489552337,7.61,232.05,231.97,19.47772589]
[1733489552838,7.61,232.05,232.01,17.17522589]
[1733489555338,5.2,232.06,232.01,17.17522589]
[1733489556734,5.2,232.06,232.05,17.17522589]
[1733489557641,4.5786,232.17,232.05,17.17522589]
[1733489557837,4.5786,232.17,232.09,17.17522589]
[1733489558544,2.2506,232.18,232.09,17.17522589]
[1733489558937,2.2506,232.18,232.04,17.17522589]
[1733489559138,2.3336,232.17,231.97,2.3025]
[1733489559339,2.3336,232.17,231.98,17.17522589]
[1733489559340,4.6036,232.17,231.98,17.17522589]
[1733489560033,5.19361,232.17,231.98,17.17522589]
[1733489560338,5.19361,232.17,231.97,17.17522589]
[1733489561037,2.86001,232.17,232.01,17.17522589]
[1733489561240,2.86001,232.17,231.93,4.6936]
[1733489561539,2.86001,232.17,232.05,17.17522589]
[1733489561941,5.04361,232.17,232.05,17.17522589]
[1733489562436,5.04361,232.17,232.01,17.17522589]
[1733489562637,5.04361,232.17,231.97,19.42182589]
[1733489562843,5.04361,232.17,231.97,17.17522589]
[1733489564339,5.04361,232.17,231.93,4.6936]
[1733489564340,17.17522589,232.14,231.93,4.6936]
[1733489564543,2.1944,232.13,231.93,4.6936]
[1733489565038,17.17522589,232.1,231.91,17.17522589]
[1733489565238,17.17522589,232.1,231.87,17.17522589]
[1733489565634,2.86001,232.17,232.01,17.17522589]
[1733489565842,2.86001,232.17,232.05,17.17522589]
[1733489566045,4.5495,232.16,232.05,17.17522589]
[1733489566542,6.7439,232.16,232.05,17.17522589]
[1733489567544,2.1869,232.16,232.09,17.17522589]
[1733489567734,2.1869,232.16,232.02,2.2187]
[1733489567735,2.86001,232.17,232.13,17.17522589]
[1733489568345,2.2616,232.28,232.13,17.17522589]
[1733489568546,2.2616,232.28,232.21,17.17522589]
[1733489571746,2.2616,232.28,232.14,4.6406]
[1733489572044,2.2616,232.28,232.08,17.17522589]
[1733489572045,2.2616,232.28,232.15,17.17522589]
[1733489572238,4.5604,232.27,232.15,17.17522589]
[1733489573149,4.5604,232.27,232.08,17.17522589]
[1733489573150,2.2616,232.28,232.19,17.17522589]
[1733489577451,2.2616,232.28,232.15,17.17522589]
[1733489578854,2.3268,232.27,232.15,17.17522589]
[1733489579743,4.6436,232.27,232.15,17.17522589]
[1733489582051,4.6436,232.27,232.19,55.0]
[1733489585350,2.2616,232.28,232.27,50.3564]
[1733489587247,17.76534589,232.4,232.27,50.3564]
[1733489587447,22.23118825,232.39,232.27,50.3564]
[1733489587652,19.87888825,232.38,232.27,50.3564]
[1733489587853,19.87888825,232.37,232.27,50.3564]
[1733489588053,2.3523,232.39,232.27,50.3564]
[1733489588054,19.87888825,232.36,232.27,50.3564]
[1733489588252,2.3523,232.39,232.27,50.3564]
[1733489589754,8.40134992,232.38,232.27,50.3564]
[1733489589955,17.17522589,232.36,232.27,50.3564]
[1733489590252,2.3523,232.39,232.27,50.3564]
[1733489590953,0.59012,232.4,232.29,17.17522589]
[1733489591554,0.59012,232.4,232.28,4.5485]
[1733489591555,0.59012,232.4,232.33,17.17522589]
[1733489594256,17.17522589,232.49,232.33,17.17522589]
[1733489597953,10.66008838,232.49,232.35,10.66008838]
[1733489598363,0.81739,232.51,232.38,10.66008838]
[1733489599152,10.66008838,232.49,232.35,10.66008838]
[1733489603366,10.66008838,232.43,232.3,2.2212]
[1733489603662,10.66008838,232.43,232.28,4.5485]
[1733489603857,10.66008838,232.4,232.27,50.3564]
[1733489604057,2.3936,232.42,232.27,50.3564]
[1733489604058,10.66008838,232.37,232.27,50.3564]
[1733489604859,4.76,232.42,232.27,50.3564]
[1733489605059,10.66008838,232.36,232.27,50.3564]
[1733489605564,10.66008838,232.36,232.21,4.591]
[1733489605760,10.66008838,232.33,232.21,4.591]
[1733489606359,10.66008838,232.3,232.14,10.66008838]
[1733489606564,10.66008838,232.3,232.17,10.66008838]
[1733489607865,10.66008838,232.3,232.14,15.10768838]
[1733489608262,10.66008838,232.33,232.17,10.66008838]
[1733489608768,10.66008838,232.36,232.2,10.66008838]
[1733489609765,2.3936,232.42,232.26,10.66008838]
[1733489610071,19.86537369,232.41,232.26,17.06483312]
[1733489610265,19.86537369,232.4,232.27,6.8418]
[1733489610461,19.86537369,232.39,232.27,6.8418]
[1733489610665,2.3936,232.42,232.27,6.8418]
[1733489610970,19.89533458,232.41,232.3,17.06483312]
[1733489611166,4.4324,232.47,232.3,17.06483312]
[1733489611467,28.33180438,232.46,232.3,17.06483312]
[1733489611670,27.70723672,232.45,232.3,17.06483312]
[1733489611973,17.06483312,232.45,232.27,6.8418]
[1733489612271,17.06483312,232.41,232.27,6.8418]
[1733489613571,17.06483312,232.41,232.27,56.8418]
[1733489615673,17.06483312,232.37,232.27,50.0]
[1733489616173,17.06483312,232.33,232.27,50.0]
[1733489617976,17.06483312,232.29,232.27,50.0]
[1733489619481,6.9664,232.36,232.27,50.0]
[1733489619482,17.06483312,232.33,232.27,50.0]
[1733489619680,8.42347955,232.32,232.27,50.0]
[1733489619874,17.06483312,232.33,232.27,50.0]
[1733489620181,19.92128317,232.32,232.27,50.0]
[1733489620382,19.92128317,232.31,232.12,17.06483312]
[1733489620582,8.42334065,232.3,232.12,17.06483312]
[1733489620779,17.06483312,232.33,232.12,17.06483312]
[1733489621077,8.42262157,232.32,232.12,17.06483312]
[1733489621381,19.91969197,232.32,232.12,17.06483312]
[1733489622175,11.4970704,232.31,232.12,17.06483312]
[1733489623085,11.4970704,232.31,232.2,17.06483312]
[1733489623387,11.4970704,232.31,232.21,4.5257]
[1733489623582,2.4124,232.36,232.21,4.5257]
[1733489623883,11.5033088,232.35,232.21,4.5257]
[1733489624083,11.5033088,232.34,232.21,4.5257]
[1733489624283,2.4124,232.36,232.21,4.5257]
[1733489624476,11.50405028,232.35,232.21,4.5257]
[1733489624682,11.50405028,232.34,232.21,4.5257]
[1733489624979,2.4124,232.36,232.09,2.2794]
[1733489624980,19.32653901,232.33,232.09,2.2794]
[1733489625185,11.50405028,232.32,232.13,17.06483312]
[1733489625382,17.06483312,232.34,232.13,17.06483312]
[1733489625586,17.06483312,232.34,232.17,17.06483312]
[1733489625587,8.42320751,232.31,232.17,17.06483312]
[1733489625890,17.06483312,232.34,232.17,17.06483312]
[1733489626083,2.4124,232.36,232.17,17.06483312]
[1733489626384,2.4124,232.36,232.21,17.06483312]
[1733489626584,2.4124,232.36,232.22,7.0245]
[1733489627986,17.06483312,232.33,232.22,4.6369]
[1733489628383,17.06483312,232.33,232.09,2.288]
[1733489628384,17.06483312,232.29,232.09,23.93053312]
[1733489628784,17.06483312,232.32,232.09,6.8657]
[1733489628785,17.06483312,232.25,232.09,6.8657]
[1733489629486,17.06483312,232.21,232.09,6.8657]
[1733489630982,2.3089,232.3,232.09,6.8657]
[1733489630983,17.06483312,232.25,232.09,6.8657]
[1733489631384,17.06483312,232.14,231.86,17.85386875]
[1733489631594,17.06483312,232.14,231.84,47.61031666]
[1733489631595,17.06483312,232.14,231.94,17.06483312]
[1733489632994,17.06483312,232.14,231.92,17.06483312]
[1733489634191,17.06483312,232.1,231.92,17.06483312]
[1733489634690,17.06483312,232.1,231.9,4.4902]
[1733489635692,17.06483312,232.1,231.91,17.06483312]
[1733489638389,17.06483312,232.14,231.95,17.06483312]
[1733489638992,17.06483312,232.14,231.96,2.3207]
[1733489640192,17.06483312,232.18,231.99,17.06483312]
[1733489641897,17.06483312,232.18,231.96,2.3207]